[Event "48th Continental Open"]
[Site "Sturbridge, MA"]
[Date "2018.08.19"]
[Round "8.7"]
[White "Graif, William"]
[Black "Kumar, Aravind"]
[Result "1-0"]
[ECO "C03"]
[WhiteElo "2123"]
[BlackElo "2169"]
[PlyCount "161"]
[EventDate "2018.08.??"]
[EventType "swiss"]
[EventRounds "9"]
[EventCountry "USA"]
[TimeControl "6000+10"]
[WhiteClock "0:00:13"]
[BlackClock "0:08:02"]

1. e4 {[%emt 0:00:10]} e6 2. d4 {[%emt 0:00:14]} d5 {[%emt 0:00:36]} 3. Nd2 {
[%emt 0:00:15]} Be7 {[%emt 0:00:49]} 4. c3 {[%emt 0:00:23]} c5 {[%emt 0:02:34]}
5. dxc5 {[%emt 0:00:42]} Nf6 {[%emt 0:04:34]} 6. exd5 {[%emt 0:00:32]} Qxd5 {
[%emt 0:03:49]} 7. b4 {[%emt 0:00:52]} a5 {[%emt 0:02:52]} 8. Ngf3 {[%emt 0:01:
17]} Nc6 {[%emt 0:13:34]} 9. Bc4 {[%emt 0:01:09]} Qh5 {[%emt 0:06:47]} 10. Rb1
{[%emt 0:07:29]} Nd5 {[%emt 0:21:41]} 11. Bxd5 {[%emt 0:27:41]} exd5 {[%emt 0:
08:25]} 12. b5 {[%emt 0:22:35]} Nd8 {[%emt 0:10:27]} 13. O-O {[%emt 0:11:52]}
O-O {[%emt 0:08:15]} 14. Re1 {[%emt 0:04:41]} Ne6 {[%emt 0:01:37]} 15. Nf1 {
[%emt 0:01:03]} Bf6 {[%emt 0:03:55]} 16. Nd4 {[%emt 0:03:15]} Qxd1 {[%emt 0:04:
33]} 17. Rxd1 {[%emt 0:00:10]} Nxc5 {[%emt 0:00:10]} 18. Ba3 {[%emt 0:00:17]}
b6 {[%emt 0:00:10]} 19. Ne3 {[%emt 0:02:50]} Be6 {[%emt 0:00:58]} 20. Nb3 {
[%emt 0:00:32]} Ne4 {[%emt 0:04:51]} 21. Bxf8 {[%emt 0:00:31]} Kxf8 {[%emt 0:
00:41]} 22. Nxd5 {[%emt 0:03:52]} Bxd5 {[%emt 0:00:22]} 23. Rxd5 {[%emt 0:00:
10]} Nxc3 {[%emt 0:00:10]} 24. Rbd1 {[%emt 0:00:23]} a4 {[%emt 0:01:25]} 25.
Nc1 {[%emt 0:00:10]} Nxd5 {[%emt 0:00:35]} 26. Rxd5 {[%emt 0:00:10]} Rc8 {
[%emt 0:00:10]} 27. Rd1 {[%emt 0:00:10]} Rc2 {[%emt 0:00:00]} 28. g3 {[%emt 0:
00:10]} Rb2 {[%emt 0:00:35]} 29. Kg2 {[%emt 0:00:10]} Rb1 {[%emt 0:00:00]} 30.
Re1 {[%emt 0:00:11]} Bc3 {[%emt 0:00:00]} 31. Rf1 {[%emt 0:00:11]} Bf6 {
[%emt 0:00:00]} 32. Nd3 {[%emt 0:00:14]} Rxb5 {[%emt 0:00:00]} 33. Rc1 {
[%emt 0:00:14]} Rd5 {[%emt 0:00:00]} 34. Nb4 {[%emt 0:00:11]} Rc5 {[%emt 0:00:
00]} 35. Rb1 {[%emt 0:00:11]} Rb5 {[%emt 0:00:00]} 36. a3 {[%emt 0:00:11]} Be7
{[%emt 0:00:00]} 37. Kf3 {[%emt 0:00:12]} Bc5 {[%emt 0:00:00]} 38. Ke2 {
[%emt 0:00:12]} Ke7 {[%emt 0:00:00]} 39. Nd5+ {[%emt 0:00:13]} Kd6 {[%emt 0:00:
00]} 40. Rxb5 {[%emt 0:00:11]} Kxd5 {[%emt 0:00:00]} 41. Kd3 {[%emt 0:00:11]}
f5 {[%emt 0:00:00]} 42. f3 {[%emt 0:00:11]} g6 {[%emt 0:00:00]} 43. Rb1 {
[%emt 0:06:39]} Kc6 {[%emt 0:02:07]} 44. Kc3 {[%emt 0:02:50]} b5 {[%emt 0:00:
00]} 45. Kb2 {[%emt 0:00:52]} Bd4+ {[%emt 0:00:00]} 46. Ka2 {[%emt 0:00:41]} h5
{[%emt 0:00:00]} 47. Re1 {[%emt 0:00:00]} g5 {[%emt 0:00:00]} 48. Re6+ {
[%emt 0:00:00]} Kd5 {[%emt 0:00:00]} 49. Rh6 {[%emt 0:00:00]} g4 {[%emt 0:00:
00]} 50. f4 {[%emt 0:00:00]} Ke4 {[%emt 0:00:52]} 51. Rxh5 {[%emt 0:00:08]} Bc3
{[%emt 0:00:00]} 52. Rh7 {[%emt 0:00:00]} Kf3 {[%emt 0:00:00]} 53. Rf7 {
[%emt 0:00:00]} Kg2 {[%emt 0:00:01]} 54. Rxf5 {[%emt 0:00:00]} Kxh2 {[%emt 0:
00:10]} 55. Rc5 {[%emt 0:00:00]} Bf6 {[%emt 0:01:06]} 56. Rc6 {[%emt 0:00:12]}
Bd4 {[%emt 0:00:35]} 57. Rd6 {[%emt 0:00:42]} Bf2 {[%emt 0:00:00]} 58. f5 {
[%emt 0:00:28]} Bxg3 {[%emt 0:00:00]} 59. Rh6+ {[%emt 0:00:18]} Kg2 {[%emt 0:
00:00]} 60. f6 {[%emt 0:00:16]} Bd6 {[%emt 0:00:00]} 61. f7 {[%emt 0:00:11]}
Bc5 {[%emt 0:00:00]} 62. Rc6 {[%emt 0:00:13]} Be7 {[%emt 0:00:00]} 63. Re6 {
[%emt 0:00:13]} Bc5 {[%emt 0:00:00]} 64. Re5 {[%emt 0:00:11]} Bd6 {[%emt 0:00:
00]} 65. Rd5 {[%emt 0:00:15]} Be7 {[%emt 0:00:00]} 66. Rxb5 {[%emt 0:00:11]} g3
{[%emt 0:00:00]} 67. Ra5 {[%emt 0:00:11]} Kf3 {[%emt 0:00:00]} 68. f8=Q+ {
[%emt 0:00:12]} Bxf8 {[%emt 0:00:00]} 69. Rf5+ {[%emt 0:00:11]} Ke3 {[%emt 0:
00:00]} 70. Rxf8 {[%emt 0:00:11]} g2 {[%emt 0:00:00]} 71. Rg8 {[%emt 0:00:10]}
Kf2 {[%emt 0:00:00]} 72. Kb2 {[%emt 0:00:10]} g1=Q {[%emt 0:00:00]} 73. Rxg1 {
[%emt 0:00:11]} Kxg1 {[%emt 0:00:00]} 74. Kc3 {[%emt 0:00:10]} Kf2 {[%emt 0:00:
00]} 75. Kb4 {[%emt 0:00:10]} Ke3 {[%emt 0:00:00]} 76. Kxa4 {[%emt 0:00:10]}
Kd4 {[%emt 0:00:00]} 77. Kb5 {[%emt 0:00:10]} Kd5 {[%emt 0:00:00]} 78. Kb6 {
[%emt 0:00:11]} Kd6 {[%emt 0:00:00]} 79. a4 {[%emt 0:00:11]} Kd7 {[%emt 0:00:
00]} 80. Kb7 {[%emt 0:00:10]} Kd6 {[%emt 0:00:00]} 81. a5 {[%emt 0:00:11]} 1-0

[Event "48th Continental Open"]
[Site "Sturbridge, MA"]
[Date "2018.08.19"]
[Round "8.10"]
[White "Samadashvili, Martha"]
[Black "Genger, Eitan"]
[Result "1-0"]
[ECO "B10"]
[WhiteElo "2136"]
[BlackElo "1903"]
[PlyCount "76"]
[EventDate "2018.08.??"]
[EventType "swiss"]
[EventRounds "9"]
[EventCountry "USA"]
[TimeControl "6000+10"]
[WhiteClock "0:21:45"]
[BlackClock "0:22:04"]

1. e4 {[%emt 0:00:10]} c6 {[%emt 0:00:20]} 2. Nf3 {[%emt 0:02:37]} d5 {[%emt 0:
00:21]} 3. Nc3 {[%emt 0:00:18]} dxe4 {[%emt 0:00:21]} 4. Nxe4 {[%emt 0:00:12]}
Nf6 {[%emt 0:00:19]} 5. Nxf6+ {[%emt 0:00:41]} gxf6 {[%emt 0:00:10]} 6. d4 {
[%emt 0:01:07]} Bg4 {[%emt 0:00:21]} 7. Be2 {[%emt 0:01:39]} e6 {[%emt 0:00:32]
} 8. Bf4 {[%emt 0:02:44]} Nd7 {[%emt 0:00:40]} 9. c3 {[%emt 0:00:27]} Nb6 {
[%emt 0:00:23]} 10. Qb3 {[%emt 0:02:05]} Qd5 {[%emt 0:10:31]} 11. Qxd5 {
[%emt 0:06:09]} Nxd5 {[%emt 0:01:18]} 12. Bg3 {[%emt 0:00:22]} Bh6 {[%emt 0:03:
38]} 13. Nd2 {[%emt 0:05:53]} Bxe2 {[%emt 0:00:10]} 14. Kxe2 {[%emt 0:00:10]}
Nf4+ {[%emt 0:02:16]} 15. Bxf4 {[%emt 0:01:06]} Bxf4 {[%emt 0:00:11]} 16. Ne4 {
[%emt 0:00:38]} Ke7 {[%emt 0:01:45]} 17. g3 {[%emt 0:01:20]} Bd6 {[%emt 0:02:
40]} 18. f4 {[%emt 0:03:14]} f5 {[%emt 0:01:15]} 19. Ng5 {[%emt 0:00:28]} h5 {
[%emt 0:06:43]} 20. Nf3 {[%emt 0:02:41]} a5 {[%emt 0:01:43]} 21. c4 {[%emt 0:
04:37]} Rad8 {[%emt 0:01:39]} 22. Rad1 {[%emt 0:02:40]} Kf6 {[%emt 0:01:13]}
23. Rd3 {[%emt 0:00:49]} Rd7 {[%emt 0:10:31]} 24. Rb1 {[%emt 0:06:51]} Kg7 {
[%emt 0:09:56]} 25. c5 {[%emt 0:06:50]} Bc7 {[%emt 0:04:08]} 26. b4 {[%emt 0:
00:29]} axb4 {[%emt 0:05:16]} 27. Rxb4 {[%emt 0:00:38]} Ra8 {[%emt 0:00:19]}
28. Rxb7 {[%emt 0:05:03]} Rxa2+ {[%emt 0:00:36]} 29. Rd2 {[%emt 0:01:35]} Rxd2+
{[%emt 0:01:05]} 30. Nxd2 {[%emt 0:00:11]} Kf8 {[%emt 0:00:52]} 31. Kd3 {
[%emt 0:03:06]} Ke8 {[%emt 0:01:13]} 32. Nc4 {[%emt 0:06:36]} Kd8 {[%emt 0:00:
10]} 33. Nb6 {[%emt 0:08:11]} Bxb6 {[%emt 0:10:39]} 34. Rxd7+ {[%emt 0:00:20]}
Kxd7 {[%emt 0:00:13]} 35. cxb6 {[%emt 0:00:37]} Kc8 {[%emt 0:00:10]} 36. Kc4 {
[%emt 0:00:16]} Kb8 {[%emt 0:00:29]} 37. Kc5 {[%emt 0:00:58]} Kb7 {[%emt 0:00:
10]} 38. h3 {[%emt 0:00:47]} f6 {[%emt 0:00:10]} 1-0

[Event "48th Continental Open"]
[Site "Sturbridge, MA"]
[Date "2018.08.19"]
[Round "8.13"]
[White "Kang, Dorian"]
[Black "Barash, Anton"]
[Result "0-1"]
[ECO "C15"]
[WhiteElo "1853"]
[BlackElo "1972"]
[PlyCount "78"]
[EventDate "2018.08.??"]
[EventType "swiss"]
[EventRounds "9"]
[EventCountry "USA"]
[TimeControl "6000+10"]
[WhiteClock "0:52:59"]
[BlackClock "0:42:53"]

1. e4 {[%emt 0:00:10]} e6 {[%emt 0:00:25]} 2. d4 {[%emt 0:00:17]} d5 {[%emt 0:
00:13]} 3. Nc3 {[%emt 0:00:14]} Bb4 {[%emt 0:00:16]} 4. exd5 {[%emt 0:00:12]}
exd5 {[%emt 0:00:13]} 5. Bd3 {[%emt 0:00:21]} Nf6 {[%emt 0:00:38]} 6. a3 {
[%emt 0:00:57]} Bd6 {[%emt 0:03:51]} 7. Nf3 {[%emt 0:01:10]} O-O {[%emt 0:00:
28]} 8. O-O {[%emt 0:00:20]} c6 {[%emt 0:00:21]} 9. Bg5 {[%emt 0:02:14]} Bg4 {
[%emt 0:00:45]} 10. Re1 {[%emt 0:02:02]} Nbd7 {[%emt 0:00:29]} 11. h3 {[%emt 0:
07:32]} Bh5 {[%emt 0:00:16]} 12. g4 {[%emt 0:00:21]} Bg6 {[%emt 0:00:15]} 13.
Ne5 {[%emt 0:01:59]} Qb6 {[%emt 0:09:32]} 14. Bxg6 {[%emt 0:05:16]} fxg6 {
[%emt 0:09:17]} 15. Qd2 {[%emt 0:05:33]} Rae8 {[%emt 0:10:30]} 16. Nxd7 {
[%emt 0:05:23]} Nxd7 {[%emt 0:00:19]} 17. Rxe8 {[%emt 0:00:28]} Rxe8 {[%emt 0:
00:10]} 18. Re1 {[%emt 0:00:28]} Rxe1+ {[%emt 0:03:01]} 19. Qxe1 {[%emt 0:00:
14]} Kf7 {[%emt 0:00:19]} 20. Qe3 {[%emt 0:06:32]} Qxb2 {[%emt 0:01:37]} 21.
Qf3+ {[%emt 0:00:35]} Nf6 {[%emt 0:01:39]} 22. Bxf6 {[%emt 0:02:56]} gxf6 {
[%emt 0:00:15]} 23. g5 {[%emt 0:00:19]} Qc1+ {[%emt 0:00:20]} 24. Nd1 {[%emt 0:
00:36]} Qxg5+ {[%emt 0:00:16]} 25. Kh1 {[%emt 0:00:17]} Qc1 {[%emt 0:04:37]}
26. Kg2 {[%emt 0:00:34]} Qxc2 {[%emt 0:00:38]} 27. Ne3 {[%emt 0:00:39]} Qe4 {
[%emt 0:00:35]} 28. Qxe4 {[%emt 0:00:16]} dxe4 {[%emt 0:00:15]} 29. Nc4 {
[%emt 0:00:20]} Ke6 {[%emt 0:00:43]} 30. Na5 {[%emt 0:00:15]} Bxa3 {[%emt 0:00:
50]} 31. Nxb7 {[%emt 0:00:20]} Kd5 {[%emt 0:01:30]} 32. Kf1 {[%emt 0:01:01]}
Kxd4 {[%emt 0:00:31]} 33. Ke2 {[%emt 0:00:16]} Bb4 {[%emt 0:02:24]} 34. Nd8 {
[%emt 0:00:20]} Kd5 {[%emt 0:00:21]} 35. Nf7 {[%emt 0:00:25]} Be7 {[%emt 0:03:
04]} 36. f3 {[%emt 0:01:16]} Ke6 {[%emt 0:01:31]} 37. Nh6 {[%emt 0:00:16]}
exf3+ {[%emt 0:00:18]} 38. Kxf3 {[%emt 0:00:23]} f5 {[%emt 0:00:35]} 39. Kf4 {
[%emt 0:00:44]} Bf8 {[%emt 0:00:30]} 0-1

[Event "48th Continental Open"]
[Site "Sturbridge, MA"]
[Date "2018.08.19"]
[Round "8.14"]
[White "Tang, Jason"]
[Black "Bader, Jeremy"]
[Result "1/2-1/2"]
[ECO "B43"]
[WhiteElo "1908"]
[BlackElo "1845"]
[PlyCount "43"]
[EventDate "2018.08.??"]
[EventType "swiss"]
[EventRounds "9"]
[EventCountry "USA"]
[TimeControl "6000+10"]
[WhiteClock "0:34:20"]
[BlackClock "0:35:34"]

1. e4 {[%emt 0:00:10]} c5 2. Nf3 {[%emt 0:00:11]} e6 {[%emt 0:00:33]} 3. d4 {
[%emt 0:00:12]} cxd4 {[%emt 0:00:16]} 4. Nxd4 {[%emt 0:00:10]} a6 {[%emt 0:00:
16]} 5. Nc3 {[%emt 0:00:27]} Qc7 {[%emt 0:00:22]} 6. Bd3 {[%emt 0:00:13]} Nf6 {
[%emt 0:00:44]} 7. O-O {[%emt 0:00:29]} Nc6 {[%emt 0:00:42]} 8. Nb3 {[%emt 0:
00:28]} Be7 {[%emt 0:03:10]} 9. f4 {[%emt 0:00:37]} d6 {[%emt 0:01:02]} 10. Qf3
{[%emt 0:01:04]} O-O {[%emt 0:07:23]} 11. a3 {[%emt 0:02:05]} Bd7 {[%emt 0:08:
25]} 12. Bd2 {[%emt 0:05:51]} Rac8 {[%emt 0:01:09]} 13. Rae1 {[%emt 0:01:52]}
Rfd8 {[%emt 0:11:28]} 14. Qg3 {[%emt 0:09:18]} Nh5 {[%emt 0:04:47]} 15. Qf3 {
[%emt 0:04:51]} Nf6 {[%emt 0:00:19]} 16. Kh1 {[%emt 0:03:27]} b5 {[%emt 0:02:
37]} 17. Nd1 {[%emt 0:07:38]} Bf8 {[%emt 0:09:49]} 18. Qg3 {[%emt 0:03:06]} d5
{[%emt 0:02:41]} 19. Nf2 {[%emt 0:16:20]} dxe4 {[%emt 0:02:01]} 20. Nxe4 {
[%emt 0:00:28]} Nxe4 {[%emt 0:00:40]} 21. Bxe4 {[%emt 0:00:53]} b4 {[%emt 0:09:
42]} 22. axb4 {[%emt 0:09:30]} 1/2-1/2

[Event "48th Continental Open"]
[Site "Sturbridge, MA"]
[Date "2018.08.19"]
[Round "8.15"]
[White "Padmanabhan, Karthik"]
[Black "Zhao, Jeffrey Renfei"]
[Result "1/2-1/2"]
[ECO "C53"]
[WhiteElo "1879"]
[BlackElo "1827"]
[PlyCount "63"]
[EventDate "2018.08.??"]
[EventType "swiss"]
[EventRounds "9"]
[EventCountry "USA"]
[TimeControl "6000+10"]
[WhiteClock "0:03:18"]
[BlackClock "1:07:20"]

1. e4 {[%emt 0:00:10]} e5 {[%emt 0:00:23]} 2. Nf3 {[%emt 0:01:29]} Nc6 {
[%emt 0:00:11]} 3. Bc4 {[%emt 0:00:17]} Bc5 {[%emt 0:00:15]} 4. c3 {[%emt 0:00:
23]} Nf6 {[%emt 0:00:14]} 5. d3 {[%emt 0:00:31]} a6 {[%emt 0:00:20]} 6. O-O {
[%emt 0:00:47]} Ba7 {[%emt 0:00:17]} 7. Bb3 {[%emt 0:00:27]} d6 {[%emt 0:00:37]
} 8. Nbd2 {[%emt 0:00:19]} O-O {[%emt 0:01:05]} 9. h3 {[%emt 0:00:17]} Be6 {
[%emt 0:00:37]} 10. Re1 {[%emt 0:00:44]} Qd7 {[%emt 0:01:43]} 11. Nf1 {[%emt 0:
01:19]} Rfe8 {[%emt 0:02:58]} 12. Ng3 {[%emt 0:05:01]} h6 {[%emt 0:02:05]} 13.
Nh2 {[%emt 0:01:38]} d5 {[%emt 0:01:22]} 14. Qf3 {[%emt 0:00:50]} dxe4 {
[%emt 0:06:21]} 15. dxe4 {[%emt 0:00:56]} Bxb3 {[%emt 0:00:11]} 16. axb3 {
[%emt 0:00:31]} Qe6 {[%emt 0:00:10]} 17. Nf5 {[%emt 0:02:30]} Ne7 {[%emt 0:00:
36]} 18. Ng4 {[%emt 0:31:12]} Nxg4 {[%emt 0:01:49]} 19. Qxg4 {[%emt 0:00:55]}
Nxf5 {[%emt 0:00:37]} 20. exf5 {[%emt 0:00:44]} Qf6 {[%emt 0:00:57]} 21. Be3 {
[%emt 0:02:57]} Bxe3 {[%emt 0:00:33]} 22. Rxe3 {[%emt 0:00:26]} Rad8 {[%emt 0:
00:18]} 23. Qe4 {[%emt 0:22:09]} c6 {[%emt 0:02:52]} 24. Re2 {[%emt 0:00:10]}
Qg5 {[%emt 0:03:12]} 25. Rae1 {[%emt 0:06:16]} f6 {[%emt 0:00:10]} 26. Re3 {
[%emt 0:03:39]} Qh5 {[%emt 0:04:06]} 27. Rg3 {[%emt 0:02:31]} Rd1 {[%emt 0:01:
33]} 28. Qc4+ {[%emt 0:05:51]} Kh8 {[%emt 0:00:10]} 29. Rxd1 {[%emt 0:01:32]}
Qxd1+ {[%emt 0:00:14]} 30. Kh2 {[%emt 0:01:26]} Qd5 {[%emt 0:00:11]} 31. Qb4 {
[%emt 0:01:20]} c5 {[%emt 0:01:53]} 32. Qb6 {[%emt 0:02:45]} 1/2-1/2

[Event "48th Continental Open"]
[Site "Sturbridge, MA"]
[Date "2018.08.19"]
[Round "8.17"]
[White "Falcao, Wesley"]
[Black "Yu, Alex"]
[Result "1-0"]
[ECO "B78"]
[WhiteElo "2148"]
[BlackElo "1852"]
[PlyCount "103"]
[EventDate "2018.08.??"]
[EventType "swiss"]
[EventRounds "9"]
[EventCountry "USA"]
[TimeControl "6000+10"]
[WhiteClock "0:00:19"]
[BlackClock "0:00:13"]

1. e4 {[%emt 0:00:10]} c5 2. Nf3 {[%emt 0:00:45]} d6 {[%emt 0:00:30]} 3. d4 {
[%emt 0:00:11]} cxd4 {[%emt 0:00:10]} 4. Nxd4 {[%emt 0:00:10]} Nf6 {[%emt 0:00:
10]} 5. Nc3 {[%emt 0:00:11]} g6 {[%emt 0:01:08]} 6. Be3 {[%emt 0:00:38]} Bg7 {
[%emt 0:00:10]} 7. f3 {[%emt 0:00:15]} O-O {[%emt 0:00:27]} 8. Qd2 {[%emt 0:00:
10]} Nc6 {[%emt 0:00:10]} 9. Bc4 {[%emt 0:00:26]} Bd7 {[%emt 0:00:24]} 10.
O-O-O {[%emt 0:00:39]} Rc8 {[%emt 0:00:18]} 11. Bb3 {[%emt 0:00:29]} Ne5 {
[%emt 0:00:11]} 12. Kb1 {[%emt 0:02:26]} Re8 {[%emt 0:02:31]} 13. a3 {[%emt 0:
06:29]} Nc4 {[%emt 0:05:20]} 14. Bxc4 {[%emt 0:00:16]} Rxc4 {[%emt 0:00:18]}
15. h4 {[%emt 0:11:33]} h5 {[%emt 0:03:27]} 16. g4 {[%emt 0:12:00]} hxg4 {
[%emt 0:06:59]} 17. h5 {[%emt 0:00:21]} Qa5 {[%emt 0:09:40]} 18. h6 {[%emt 0:
18:50]} Bf8 {[%emt 0:01:19]} 19. Nb3 {[%emt 0:03:45]} Qc7 {[%emt 0:03:30]} 20.
Bg5 {[%emt 0:06:36]} Rxc3 {[%emt 0:14:04]} 21. bxc3 {[%emt 0:03:16]} gxf3 {
[%emt 0:00:14]} 22. Qd4 {[%emt 0:00:12]} Nh7 {[%emt 0:10:43]} 23. Bc1 {[%emt 0:
01:10]} Rc8 {[%emt 0:01:54]} 24. Rd3 {[%emt 0:04:34]} e5 {[%emt 0:06:29]} 25.
Qxa7 {[%emt 0:01:19]} Qc6 {[%emt 0:12:29]} 26. Qe3 {[%emt 0:05:53]} Nf6 {
[%emt 0:03:14]} 27. Qxf3 {[%emt 0:03:29]} Nh7 {[%emt 0:04:47]} 28. Rg1 {
[%emt 0:07:11]} Be6 {[%emt 0:00:36]} 29. Rg3 {[%emt 0:01:09]} Qb5 {[%emt 0:01:
24]} 30. c4 {[%emt 0:03:09]} Rxc4 {[%emt 0:00:55]} 31. Rc3 {[%emt 0:00:47]} Qc6
{[%emt 0:02:52]} 32. Rxc4 {[%emt 0:01:35]} Qxc4 {[%emt 0:00:24]} 33. Kb2 {
[%emt 0:02:09]} Be7 {[%emt 0:01:00]} 34. Qd3 {[%emt 0:00:33]} Nf6 {[%emt 0:01:
15]} 35. Qxc4 {[%emt 0:00:23]} Bxc4 {[%emt 0:00:18]} 36. Rc3 {[%emt 0:00:12]}
Bxb3 {[%emt 0:00:54]} 37. Rxb3 {[%emt 0:00:10]} Nxe4 {[%emt 0:00:16]} 38. Rxb7
{[%emt 0:00:45]} Bh4 {[%emt 0:00:10]} 39. Be3 {[%emt 0:01:59]} d5 {[%emt 0:00:
10]} 40. a4 {[%emt 0:00:23]} d4 {[%emt 0:00:10]} 41. Bxd4 {[%emt 0:00:00]} exd4
{[%emt 0:00:38]} 42. a5 {[%emt 0:00:00]} Nc5 {[%emt 0:00:00]} 43. Rc7 {[%emt 0:
00:00]} Na6 {[%emt 0:01:07]} 44. Rc6 {[%emt 0:00:00]} Nb4 {[%emt 0:01:29]} 45.
Rb6 {[%emt 0:00:00]} d3 {[%emt 0:02:50]} 46. h7+ {[%emt 0:00:56]} Kh8 {[%emt 0:
00:36]} 47. Rb8+ {[%emt 0:00:10]} Kxh7 {[%emt 0:00:12]} 48. Rxb4 {[%emt 0:00:
12]} Be1 {[%emt 0:00:11]} 49. c3 {[%emt 0:00:11]} f5 {[%emt 0:00:10]} 50. a6 {
[%emt 0:00:04]} Bf2 {[%emt 0:00:00]} 51. Rd4 {[%emt 0:00:19]} d2 {[%emt 0:00:
14]} 52. Kc2 {[%emt 0:00:00]} 1-0

[Event "48th Continental Open"]
[Site "Sturbridge, MA"]
[Date "2018.08.19"]
[Round "8.19"]
[White "Poliannikov, Danila"]
[Black "Ramanathan, Suraj"]
[Result "1/2-1/2"]
[ECO "B91"]
[WhiteElo "1994"]
[BlackElo "1961"]
[PlyCount "42"]
[EventDate "2018.08.??"]
[EventType "swiss"]
[EventRounds "9"]
[EventCountry "USA"]
[TimeControl "6000+10"]
[WhiteClock "0:49:44"]
[BlackClock "1:15:02"]

1. e4 {[%emt 0:00:10]} c5 {[%emt 0:00:20]} 2. Nf3 {[%emt 0:00:32]} d6 {[%emt 0:
00:10]} 3. d4 {[%emt 0:00:29]} cxd4 {[%emt 0:00:16]} 4. Nxd4 {[%emt 0:00:24]}
Nf6 {[%emt 0:00:11]} 5. Nc3 {[%emt 0:00:16]} a6 {[%emt 0:00:34]} 6. g3 {
[%emt 0:00:11]} e5 {[%emt 0:00:11]} 7. Nb3 {[%emt 0:00:18]} Nbd7 {[%emt 0:00:
12]} 8. Bg2 {[%emt 0:00:30]} b5 {[%emt 0:00:12]} 9. O-O {[%emt 0:04:14]} Be7 {
[%emt 0:01:14]} 10. a4 {[%emt 0:01:53]} b4 {[%emt 0:00:10]} 11. Nd5 {[%emt 0:
00:10]} Nxd5 {[%emt 0:00:39]} 12. Qxd5 {[%emt 0:00:11]} Rb8 {[%emt 0:01:49]}
13. Be3 {[%emt 0:06:02]} O-O {[%emt 0:05:35]} 14. Qd3 {[%emt 0:06:57]} a5 {
[%emt 0:08:54]} 15. Qd5 {[%emt 0:15:14]} Qc7 {[%emt 0:01:39]} 16. Rac1 {
[%emt 0:00:39]} Nc5 {[%emt 0:01:07]} 17. Nxc5 {[%emt 0:00:44]} dxc5 {[%emt 0:
00:10]} 18. Qd2 {[%emt 0:10:54]} Rd8 {[%emt 0:01:56]} 19. Qe2 {[%emt 0:00:29]}
Bd7 {[%emt 0:01:08]} 20. b3 {[%emt 0:00:11]} Be6 {[%emt 0:00:10]} 21. f4 {
[%emt 0:03:18]} f6 {[%emt 0:02:01]} 1/2-1/2

[Event "48th Continental Open"]
[Site "Sturbridge, MA"]
[Date "2018.08.19"]
[Round "8.22"]
[White "Luo, Ryan"]
[Black "Procyk, Marijan"]
[Result "1-0"]
[ECO "D11"]
[WhiteElo "1805"]
[BlackElo "1940"]
[PlyCount "73"]
[EventDate "2018.08.??"]
[EventType "swiss"]
[EventRounds "9"]
[EventCountry "USA"]
[TimeControl "6000+10"]
[WhiteClock "0:10:16"]
[BlackClock "1:05:12"]

1. d4 {[%emt 0:00:10]} d5 {[%emt 0:00:27]} 2. c4 {[%emt 0:00:12]} c6 {[%emt 0:
00:15]} 3. Nf3 {[%emt 0:00:14]} Nf6 {[%emt 0:00:20]} 4. Qb3 {[%emt 0:00:15]} e6
{[%emt 0:00:23]} 5. g3 {[%emt 0:00:15]} Bd6 {[%emt 0:00:54]} 6. Bg2 {[%emt 0:
00:24]} Nbd7 {[%emt 0:00:21]} 7. O-O {[%emt 0:01:27]} O-O {[%emt 0:01:00]} 8.
Nc3 {[%emt 0:02:36]} dxc4 {[%emt 0:02:13]} 9. Qxc4 {[%emt 0:00:24]} e5 {
[%emt 0:00:11]} 10. Rd1 {[%emt 0:19:20]} Nb6 {[%emt 0:00:34]} 11. Qd3 {[%emt 0:
01:03]} exd4 {[%emt 0:01:08]} 12. Nxd4 {[%emt 0:04:05]} Be7 {[%emt 0:02:37]}
13. Nf5 {[%emt 0:03:25]} Bxf5 {[%emt 0:00:17]} 14. Qxf5 {[%emt 0:00:12]} Qc8 {
[%emt 0:00:22]} 15. Qxc8 {[%emt 0:06:01]} Raxc8 {[%emt 0:00:18]} 16. h3 {
[%emt 0:09:47]} Rcd8 {[%emt 0:00:27]} 17. Bf4 {[%emt 0:08:05]} Rxd1+ {[%emt 0:
00:37]} 18. Rxd1 {[%emt 0:00:42]} Rd8 {[%emt 0:00:15]} 19. Rxd8+ {[%emt 0:03:
03]} Bxd8 {[%emt 0:00:16]} 20. e4 {[%emt 0:03:30]} Ne8 {[%emt 0:02:31]} 21. b3
{[%emt 0:03:59]} g5 {[%emt 0:01:08]} 22. Be3 {[%emt 0:01:58]} Bf6 {[%emt 0:00:
40]} 23. Ne2 {[%emt 0:00:59]} Nd7 {[%emt 0:01:29]} 24. Bxa7 {[%emt 0:06:20]} b6
{[%emt 0:02:45]} 25. e5 {[%emt 0:01:24]} Bxe5 {[%emt 0:00:15]} 26. Bxc6 {
[%emt 0:00:13]} Nef6 {[%emt 0:00:15]} 27. a4 {[%emt 0:01:57]} Kf8 {[%emt 0:01:
16]} 28. b4 {[%emt 0:00:53]} Bc7 {[%emt 0:00:15]} 29. Nd4 {[%emt 0:01:58]} Bd6
{[%emt 0:07:28]} 30. Bxd7 {[%emt 0:03:45]} Nxd7 {[%emt 0:00:27]} 31. Nc6 {
[%emt 0:00:12]} Bc7 {[%emt 0:02:05]} 32. a5 {[%emt 0:02:03]} f6 {[%emt 0:03:13]
} 33. a6 {[%emt 0:03:03]} Kf7 {[%emt 0:00:53]} 34. Bb8 {[%emt 0:00:47]} Nxb8 {
[%emt 0:00:28]} 35. a7 {[%emt 0:00:15]} Nxc6 {[%emt 0:00:22]} 36. a8=Q {
[%emt 0:00:34]} Nd8 {[%emt 0:02:33]} 37. Qc8 {[%emt 0:00:24]} 1-0

[Event "48th Continental Open"]
[Site "Sturbridge, MA"]
[Date "2018.08.19"]
[Round "8.23"]
[White "Finnerman, David"]
[Black "Riddell, Connor"]
[Result "1-0"]
[ECO "B43"]
[WhiteElo "1735"]
[BlackElo "1716"]
[PlyCount "51"]
[EventDate "2018.08.??"]
[EventType "swiss"]
[EventRounds "9"]
[EventCountry "USA"]
[TimeControl "6000+10"]
[WhiteClock "0:47:51"]
[BlackClock "0:37:53"]

1. e4 {[%emt 0:00:10]} c5 2. Nf3 {[%emt 0:00:22]} e6 {[%emt 0:00:36]} 3. d4 {
[%emt 0:00:41]} cxd4 {[%emt 0:00:13]} 4. Nxd4 {[%emt 0:00:14]} a6 {[%emt 0:00:
17]} 5. Nc3 {[%emt 0:00:27]} b5 {[%emt 0:00:14]} 6. Bd3 {[%emt 0:01:11]} Qb6 {
[%emt 0:00:17]} 7. Nb3 {[%emt 0:00:32]} Nc6 {[%emt 0:04:52]} 8. O-O {[%emt 0:
00:19]} Nf6 {[%emt 0:01:34]} 9. Be3 {[%emt 0:00:13]} Qb8 {[%emt 0:00:11]} 10.
Re1 {[%emt 0:00:10]} d6 {[%emt 0:00:46]} 11. f4 {[%emt 0:02:24]} Be7 {[%emt 0:
01:46]} 12. Qf3 {[%emt 0:00:10]} Bb7 {[%emt 0:04:33]} 13. Rad1 {[%emt 0:00:13]}
O-O {[%emt 0:00:10]} 14. Qh3 {[%emt 0:02:31]} b4 {[%emt 0:05:54]} 15. Na4 {
[%emt 0:08:00]} Qe8 {[%emt 0:07:52]} 16. e5 {[%emt 0:03:52]} dxe5 {[%emt 0:06:
33]} 17. Nac5 {[%emt 0:00:42]} e4 {[%emt 0:01:21]} 18. Nxe4 {[%emt 0:06:28]}
Nxe4 {[%emt 0:08:07]} 19. Bxe4 {[%emt 0:04:21]} f5 {[%emt 0:00:11]} 20. Bd3 {
[%emt 0:00:10]} Rf6 {[%emt 0:04:17]} 21. Bc4 {[%emt 0:04:41]} Nd8 {[%emt 0:01:
16]} 22. Rd2 {[%emt 0:12:01]} Rh6 {[%emt 0:00:35]} 23. Qxf5 {[%emt 0:01:13]}
Qc6 {[%emt 0:02:50]} 24. Qd3 {[%emt 0:00:11]} a5 {[%emt 0:11:07]} 25. f5 {
[%emt 0:04:23]} Qc7 {[%emt 0:00:55]} 26. Bxh6 {[%emt 0:00:50]} 1-0